bitfinex-derivatives/quotes_SOLF0:USTF0_20250712
["timestamp","ask_amount","ask_price","bid_price","bid_amount"]
[1752321709876,9.7378,161.54,161.52,3.44]
[1752321710278,6.1878,161.54,161.52,9.6284]
[1752321710478,6.1878,161.54,161.53,3.44]
[1752321710670,9.7378,161.54,161.53,3.44]
[1752321711177,6.1878,161.54,161.53,3.44]
[1752321711778,9.7378,161.54,161.53,3.44]
[1752321712671,6.1874,161.55,161.53,3.44]
[1752321712879,9.7374,161.55,161.53,3.44]
[1752321713372,6.1876,161.54,161.53,3.44]
[1752321713577,9.7376,161.54,161.53,3.44]
[1752321714576,6.1882,161.53,161.51,6.1886]
[1752321714778,9.7382,161.53,161.52,3.44]
[1752321715078,3.55,161.55,161.52,9.6284]
[1752321715270,3.55,161.55,161.53,3.44]
[1752321715674,3.55,161.54,161.53,3.44]
[1752321717181,9.738,161.54,161.53,3.44]
[1752321717783,6.188,161.54,161.53,3.44]
[1752321718780,9.738,161.54,161.53,3.44]
[1752321719383,6.188,161.54,161.53,3.44]
[1752321719686,9.738,161.54,161.53,3.44]
[1752321721381,6.188,161.54,161.53,3.44]
[1752321721979,9.738,161.54,161.53,3.44]
[1752321722275,6.188,161.54,161.53,3.44]
[1752321722681,5.06030877,161.57,161.53,4.95030877]
[1752321722879,3.55,161.56,161.54,3.44]
[1752321723281,3.55,161.57,161.54,4.95030877]
[1752321723488,3.55,161.58,161.57,3.44]
[1752321723686,1.51030877,161.62,161.57,1.51030877]
[1752321723885,6.1853,161.61,161.58,7.69620877]
[1752321724088,9.7353,161.61,161.59,3.44]
[1752321724387,3.55,161.61,161.59,3.44]
[1752321724787,3.55,161.61,161.59,4.95030877]
[1752321724988,9.735,161.61,161.6,3.44]
[1752321726593,6.185,161.61,161.6,3.44]
[1752321726796,9.735,161.61,161.6,3.44]
[1752321726986,6.185,161.61,161.6,3.44]
[1752321727187,546.9655,161.67,161.62,3.44]
[1752321727188,3.55,161.64,161.62,3.44]
[1752321727590,5.90758286,161.66,161.6,3.44]
[1752321727889,9.735,161.61,161.6,3.44]
[1752321728994,9.7353,161.6,161.59,3.48367337]
[1752321729186,6.1853,161.6,161.59,3.48367337]
[1752321729786,5.90758286,161.6,161.56,3.44]
[1752321729993,3.55,161.59,161.56,3.44]
[1752321730197,3.55,161.59,161.57,3.44]
[1752321730495,9.7361,161.58,161.57,3.44]
[1752321731391,6.1873,161.55,161.52,8.54588286]
[1752321731694,3.55,161.57,161.5,2.35758286]
[1752321731996,6.1879,161.54,161.51,6.1887]
[1752321732198,6.23179503,161.54,161.52,3.44]
[1752321733686,0.04389503,161.54,161.52,9.6284]
[1752321733894,0.04389503,161.54,161.52,3.44]
[1752321734288,0.04389503,161.54,161.52,5.79758286]
[1752321734493,0.04389503,161.54,161.53,3.44]
[1752321736603,0.04389503,161.54,161.53,9.628]
[1752321737695,0.04389503,161.54,161.53,3.44]
[1752321741198,0.04389503,161.54,161.53,9.628]
[1752321741595,0.04389503,161.54,161.53,3.44]
[1752321743102,0.04389503,161.54,161.53,9.628]
[1752321743699,0.04389503,161.54,161.53,3.44]
[1752321745106,0.04389503,161.54,161.53,9.628]
[1752321745605,6.1867,161.57,161.54,9.4875]
[1752321745899,9.5167,161.57,161.55,3.3]
[1752321746999,6.1867,161.57,161.55,9.4872]
[1752321747208,6.1867,161.57,161.56,3.3]
[1752321747603,3.33,161.59,161.56,6.1868]
[1752321747804,3.33,161.59,161.57,3.3]
[1752321748903,3.33,161.61,161.58,3.3]
[1752321749203,0.03927714,161.6,161.58,3.3]
[1752321749605,0.03927714,161.6,161.58,9.52852624]
[1752321749802,0.03927714,161.6,161.58,6.22852624]
[1752321750005,0.03927714,161.6,161.59,3.3]
[1752321750707,0.03927714,161.6,161.59,9.4857]
[1752321751097,0.03927714,161.6,161.59,11.84328286]
[1752321752708,0.03927714,161.6,161.59,9.4857]
[1752321753104,0.03927714,161.6,161.59,3.3]
[1752321754010,3.36927714,161.6,161.58,0.04272624]
[1752321754702,9.5157,161.59,161.58,0.04272624]
[1752321756608,9.5157,161.59,161.58,3.34272624]
[1752321756804,6.1857,161.59,161.58,3.34272624]
[1752321757707,9.5157,161.59,161.58,3.34272624]
[1752321759209,6.1857,161.59,161.58,3.34272624]
[1752321760203,0.03927714,161.6,161.58,3.34272624]
[1752321761216,0.03927714,161.6,161.58,6.22862624]
[1752321761405,0.03927714,161.6,161.59,3.3]
[1752321761607,0.03927714,161.6,161.59,5.65758286]
[1752321762011,3.33,161.65,161.6,3.3]
[1752321762212,3.33,161.65,161.62,3.3]
[1752321762610,6.184,161.64,161.62,9.4845]
[1752321762807,6.184,161.64,161.63,3.3]
[1752321763008,3.33,161.68,161.63,5.65758286]
[1752321763211,539.64695244,161.75,161.65,2.35758286]
[1752321763411,3.33,161.73,161.66,3.3]
[1752321763608,6.1827,161.67,161.66,3.3]
[1752321764418,6.1824,161.68,161.66,3.3]
[1752321764614,3.33,161.7,161.66,3.3]
[1752321764813,6.1819,161.69,161.67,2.35758286]
[1752321765013,6.1819,161.69,161.68,3.47]
[1752321765420,6.1817,161.7,161.68,3.47]
[1752321765720,3.52,161.73,161.68,3.47]
[1752321766720,6.1817,161.7,161.68,3.47]
[1752321767719,6.1819,161.69,161.68,5.82758286]
[1752321768121,6.1816,161.7,161.68,5.82758286]
[1752321768325,6.1816,161.7,161.69,3.47]
[1752321768927,6.1812,161.71,161.69,3.47]
[1752321769126,3.52,161.72,161.69,3.47]
[1752321769624,6.1815,161.7,161.69,3.47]
[1752321769825,9.7015,161.7,161.69,3.47]
[1752321771220,714.74,161.75,161.69,3.47]
[1752321771523,3.52,161.74,161.7,3.47]
[1752321771720,6.1811,161.71,161.7,3.47]
[1752321771920,9.7011,161.71,161.7,3.47]
[1752321772625,6.1811,161.71,161.7,3.47]
[1752321776523,9.7015,161.7,161.69,3.51525483]
[1752321777628,6.1815,161.7,161.69,3.51525483]
[1752321778424,9.7015,161.7,161.69,3.51525483]
[1752321781132,6.1815,161.7,161.69,3.51525483]
[1752321781633,3.52,161.72,161.69,3.51525483]
[1752321781937,3.52,161.74,161.69,3.51525483]
[1752321782132,6.1814,161.71,161.69,3.51525483]
[1752321782337,6.1814,161.71,161.69,5.87283769]
[1752321782535,6.1814,161.71,161.69,2.40283769]
[1752321782738,6.1814,161.71,161.7,3.47]
[1752321784441,6.1809,161.72,161.7,3.47]
[1752321786737,6.1805,161.73,161.7,6.1815]
[1752321786941,6.1805,161.73,161.71,3.47]
[1752321787144,3.52,161.74,161.71,3.47]
[1752321788645,6.1807,161.72,161.71,3.47]
[1752321793948,180.22,161.75,161.72,3.47]
[1752321794145,3.52,161.76,161.72,3.47]
[1752321794550,3.52,161.75,161.72,3.47]
[1752321794841,6.1803,161.74,161.72,3.51579478]
[1752321795045,3.52,161.75,161.72,3.51579478]
[1752321795548,6.1802,161.74,161.72,3.51579478]
[1752321796045,3.52,161.75,161.72,3.51579478]
[1752321796643,6.18,161.74,161.72,3.51579478]
[1752321797050,6.1804,161.73,161.72,3.51579478]
[1752321799662,6.1801,161.74,161.73,3.28]
[1752321800362,9.6996,161.75,161.73,3.28]
[1752321800565,3.52,161.78,161.74,3.28]
[1752321800762,3.52,161.77,161.74,3.28]
[1752321801364,9.699,161.77,161.74,3.28]
[1752321801665,3.52,161.8,161.75,5.63758286]
[1752321801960,9.6987,161.78,161.76,3.28]
[1752321802157,3.52,161.81,161.75,3.28]
[1752321802364,3.52,161.78,161.76,0.04348966]
[1752321802760,9.6988,161.77,161.76,0.04348966]
[1752321803354,9.6988,161.77,161.73,3.28]
[1752321803556,9.7,161.74,161.73,3.28]
[1752321805673,9.6997,161.75,161.73,3.28]
[1752321806171,6.1797,161.75,161.73,3.28]
[1752321806572,9.6997,161.75,161.73,3.28]
[1752321807472,105.04926664,161.82,161.72,0.0439281]
[1752321807473,3.52,161.76,161.72,0.0439281]
[1752321807669,3.52,161.76,161.72,3.3239281]
[1752321807864,3.52,161.76,161.72,3.28]
[1752321808067,3.52,161.76,161.72,3.32064959]
[1752321808475,6.1804,161.73,161.72,3.32064959]
[1752321808677,9.7004,161.73,161.72,3.32064959]
[1752321816382,9.7004,161.73,161.72,0.04064959]
[1752321816677,9.7004,161.73,161.72,3.32064959]
[1752321817681,6.1811,161.72,161.7,3.28]
[1752321817880,3.52,161.71,161.7,3.28]
[1752321818678,6.1811,161.72,161.7,3.28]
[1752321818878,9.7011,161.72,161.7,3.28]
[1752321820475,9.7106,161.73,161.71,3.28]
[1752321820677,0.04024546,161.74,161.71,3.28]
[1752321820982,3.53,161.72,161.68,6.1822]
[1752321821283,3.53,161.72,161.66,2.35758286]
[1752321821883,3.54,161.7,161.68,6.1822]
[1752321822081,3.54,161.69,161.68,6.1822]
[1752321822279,6.22158524,161.71,161.68,6.1822]
[1752321822578,3.54,161.7,161.68,6.1822]
[1752321822983,3.54,161.7,161.69,3.28]
[1752321824685,3.54,161.7,161.69,9.4619]
[1752321824885,3.54,161.7,161.69,3.28]
[1752321825689,3.54,161.7,161.69,9.4619]
[1752321828390,0.04038524,161.71,161.69,9.4619]
[1752321828391,3.37038524,161.71,161.69,9.4619]
[1752321828578,3.37038524,161.71,161.7,9.4815]
[1752321829390,0.04038524,161.71,161.7,9.4815]
[1752321829586,3.33,161.74,161.73,3.3]
[1752321830594,3.33,161.74,161.73,9.4804]
[1752321832590,3.33,161.74,161.73,3.3]
[1752321832889,3.33,161.74,161.68,6.91319064]
[1752321832890,3.33,161.74,161.68,9.2707735]
[1752321833083,3.33,161.74,161.69,3.3]
[1752321833283,6.1802,161.74,161.71,6.1811]
[1752321833487,3.33,161.73,161.71,3.3]
[1752321833690,6.1809,161.72,161.69,6.1818]
[1752321833891,3.33,161.71,161.69,3.3]
[1752321834084,3.33,161.71,161.7,3.3]
[1752321834492,3.33,161.71,161.7,9.4815]
[1752321834692,3.33,161.74,161.7,3.3]
[1752321834890,3.33,161.74,161.71,6.1807]
[1752321835097,3.33,161.74,161.72,3.3]
[1752321835594,3.33,161.74,161.73,3.3]
[1752321836391,9.51,161.74,161.71,6.1807]
[1752321836595,6.18,161.74,161.72,3.3]
[1752321836799,3.33,161.73,161.72,3.3]
[1752321836996,3.33,161.74,161.69,2.35758286]
[1752321837199,3.33,161.74,161.73,3.3]
[1752321837893,3.33,161.74,161.73,9.4804]
[1752321838299,9.5089,161.77,161.74,6.1799]
[1752321838500,3.33,161.76,161.75,3.3]
[1752321838995,3.33,161.76,161.75,9.4796]
[1752321840798,6.1782,161.79,161.76,6.1789]
[1752321841007,3.33,161.81,161.75,5.65758286]
[1752321841300,3.33,161.81,161.76,3.3]
[1752321841502,534.16,161.83,161.77,2.35758286]
[1752321841693,3.33,161.8,161.78,3.3]
[1752321842298,3.33,161.8,161.79,6.1781]
[1752321842506,3.33,161.79,161.78,3.3]
[1752321843100,3.33,161.79,161.74,3.3]
[1752321843300,2.35758286,161.79,161.74,3.3]
[1752321843498,3.33,161.78,161.75,3.3]
[1752321843907,6.1791,161.77,161.75,3.3]
[1752321844205,3.33,161.76,161.75,0.04346592]
[1752321844606,9.5095,161.76,161.75,0.04346592]
[1752321847104,6.1804,161.73,161.7,6.1814]
[1752321847303,3.33,161.72,161.71,3.3]
[1752321848806,9.5108,161.72,161.71,3.3]
[1752321850505,3.33,161.72,161.71,3.3]
[1752321851608,9.5113,161.72,161.71,3.3]
[1752321851912,3.33,161.72,161.71,3.3]
[1752321852208,3.33,161.72,161.66,3.3]
[1752321852712,6.1824,161.7,161.67,6.183]
[1752321852910,3.33,161.69,161.67,9.483]
[1752321853510,3.33,161.68,161.65,3.3]
[1752321853709,3.33,161.68,161.66,3.3]
[1752321855106,3.33,161.68,161.66,9.4834]
[1752321855303,3.5,161.7,161.65,3.63]
[1752321856211,3.5,161.69,161.67,6.1833]
[1752321856807,3.5,161.69,161.67,9.8133]
[1752321859614,3.5,161.69,161.67,3.63]
[1752321859914,3.5,161.69,161.64,2.35758286]
[1752321860110,3.5,161.69,161.68,3.63]
[1752321860614,3.54020752,161.71,161.69,3.63]
[1752321860817,0.04020752,161.71,161.7,9.8121]
[1752321861021,3.5,161.74,161.71,3.63]
[1752321861409,3.5,161.73,161.72,6.181]
[1752321861610,3.5,161.73,161.72,9.811]
[1752321862111,3.5,161.75,161.73,9.8109]
[1752321862520,3.5,161.75,161.73,6.1809]
[1752321862715,9.6803,161.75,161.72,6.1812]
[1752321862915,3.5,161.74,161.73,3.63]
[1752321864019,3.5,161.74,161.72,6.1812]
[1752321864220,3.5,161.74,161.72,9.8112]
[1752321867421,3.5,161.74,161.73,3.63]
[1752321868015,3.5,161.76,161.71,3.63]
[1752321868716,6.1813,161.73,161.72,3.63]
[1752321868924,6.1813,161.73,161.7,9.8119]
[1752321868925,3.5,161.72,161.7,9.8119]
[1752321869122,3.5,161.72,161.7,6.1819]
[1752321869319,9.6814,161.72,161.71,3.63]
[1752321869518,3.5,161.71,161.7,3.63]
[1752321871130,3.5,161.71,161.7,9.8121]
[1752321872629,3.5,161.71,161.7,3.63]
[1752321873424,0.04059989,161.72,161.71,6.1817]
[1752321873729,3.54059989,161.72,161.71,9.8117]
[1752321876834,0.04059989,161.72,161.71,9.8117]
[1752321877232,0.04059989,161.72,161.71,12.16928286]
[1752321883135,3.5,161.77,161.76,6.1796]
[1752321883441,3.5,161.77,161.76,3.63]
[1752321884241,3.5,161.76,161.75,3.63]
[1752321884543,3.5,161.76,161.75,3.6771507]
[1752321885438,3.5,161.76,161.75,0.0471507]
[1752321886138,3.5,161.76,161.75,3.6071507]
[1752321887239,9.6395,161.77,161.75,6.2273507]
[1752321887436,3.46,161.77,161.76,3.56]
[1752321889344,9.6395,161.77,161.76,3.56]
[1752321890146,6.1798,161.76,161.75,3.6071507]
[1752321890344,9.6398,161.76,161.75,3.6071507]
[1752321890547,9.6398,161.76,161.75,0.0471507]
[1752321892635,6.1811,161.73,161.71,6.1816]
[1752321892842,3.46,161.72,161.66,6.91319064]
[1752321893146,3.46,161.72,161.69,2.35758286]
[1752321893347,3.46,161.72,161.7,3.56]
[1752321894237,9.6411,161.73,161.72,3.56]
[1752321894552,3.46,161.73,161.72,3.56]
[1752321895250,9.641,161.73,161.72,3.56]
[1752321896045,3.46,161.71,161.67,2.35758286]
[1752321896348,3.46,161.71,161.69,6.1823]
[1752321896647,3.46,161.71,161.7,3.56]
[1752321897842,3.46,161.71,161.67,3.56]
[1752321898248,3.46,161.71,161.67,6.1832]
[1752321898449,3.46,161.71,161.68,3.56]
[1752321899147,6.1821,161.7,161.68,3.56]
[1752321899342,3.46,161.69,161.68,3.56]
[1752321900351,3.46,161.69,161.68,9.7429]
[1752321900749,3.46,161.74,161.68,3.56]
[1752321900960,6.1808,161.74,161.71,6.1815]
[1752321901256,3.46,161.73,161.72,3.56]
[1752321904054,6.181,161.73,161.72,3.56]
[1752321904256,3.46,161.72,161.71,3.56]
[1752321904648,3.46,161.71,161.7,3.56]
[1752321904849,3.46,161.71,161.68,3.56]
[1752321905252,3.46,161.69,161.68,3.56]
[1752321906253,3.46,161.69,161.68,6.1828]
[1752321906449,3.46,161.69,161.68,9.7428]
[1752321907159,3.46,161.69,161.68,3.56]
[1752321907958,6.1819,161.71,161.68,6.1829]
[1752321908260,3.46,161.72,161.66,3.56]
[1752321908657,3.46,161.69,161.68,3.56]
[1752321909055,9.6425,161.69,161.68,3.56]
[1752321911360,6.1825,161.69,161.68,3.56]
[1752321911560,9.6425,161.69,161.68,3.56]
[1752321915764,6.183,161.68,161.66,6.1835]
[1752321915969,3.44,161.67,161.65,6.1839]
[1752321916373,3.44,161.67,161.66,3.28]
[1752321916964,9.6233,161.67,161.66,3.28]
[1752321917470,6.1846,161.64,161.6,540.95319064]
[1752321917662,6.1846,161.64,161.62,3.28]
[1752321917663,3.44,161.64,161.62,3.28]
[1752321918071,9.6246,161.64,161.62,3.28]
[1752321918667,6.1846,161.64,161.62,3.28]
[1752321918862,36.03955241,161.74,161.6,6.1858]
[1752321918863,2.35758286,161.67,161.6,6.1858]
[1752321919073,3.44,161.62,161.59,2.35758286]
[1752321919468,3.44,161.62,161.6,3.28]
[1752321919670,3.48020344,161.62,161.6,3.28]
[1752321920373,3.48020344,161.62,161.61,9.4656]
[1752321920671,0.04020344,161.62,161.61,9.4656]
[1752321922077,3.44,161.68,161.62,3.28]
[1752321922778,3.44,161.65,161.64,3.28]
[1752321923778,3.44,161.66,161.63,0.0390249]
[1752321924176,9.6244,161.64,161.63,0.0390249]
[1752321928679,9.6244,161.64,161.63,3.3190249]
[1752321929782,6.1841,161.65,161.63,3.3190249]
[1752321929983,3.44,161.65,161.63,3.3190249]
[1752321930186,3.44,161.68,161.63,3.3190249]
[1752321930878,6.1839,161.66,161.64,6.1844]
[1752321931078,9.6239,161.66,161.65,3.28]
[1752321931280,3.44,161.66,161.65,3.28]
[1752321933181,9.6237,161.66,161.65,3.28]
[1752321933381,3.44,161.66,161.63,6.2237249]
[1752321933583,3.44,161.66,161.63,0.0390249]
[1752321933880,9.6244,161.64,161.63,0.0390249]
[1752321942893,3.44,161.65,161.63,3.3190249]
[1752321943097,2.35758286,161.67,161.63,3.3190249]
[1752321943098,3.44,161.68,161.63,3.3190249]
[1752321943390,6.1835,161.67,161.64,6.1841]
[1752321943578,3.44,161.66,161.65,3.28]
[1752321944889,6.1835,161.67,161.65,9.464]
[1752321945089,3.34,161.67,161.65,3.28]
[1752321945392,3.34,161.67,161.65,9.4639]
[1752321945692,3.34,161.67,161.66,3.37]
[1752321946086,6.1829,161.68,161.66,3.37]
[1752321946288,3.34,161.68,161.66,9.5533]
[1752321946493,3.34,161.72,161.67,3.37]
[1752321947186,3.34,161.72,161.69,3.37]
[1752321947493,3.34,161.72,161.7,3.37]
[1752321949291,9.522,161.71,161.7,3.37]
[1752321953084,6.1815,161.72,161.7,9.5521]
[1752321953290,9.5215,161.72,161.71,3.37]
[1752321953791,9.5215,161.72,161.7,6.1821]
[1752321953792,6.1818,161.71,161.7,3.37]
[1752321954091,9.5218,161.71,161.7,3.37]
[1752321960192,9.5225,161.69,161.68,0.04112455]
[1752321964795,9.5225,161.69,161.68,3.41112455]
[1752321964996,9.5223,161.7,161.68,3.41112455]
[1752321965199,3.34,161.73,161.68,0.04112455]
[1752321965392,3.34,161.73,161.69,3.37]
[1752321966090,6.1821,161.7,161.69,3.37]
[1752321966290,9.5221,161.7,161.69,3.37]
[1752321967397,6.1821,161.7,161.69,3.37]
[1752321967597,9.5218,161.71,161.69,3.37]
[1752321968599,9.5221,161.7,161.69,3.37]
[1752321972596,6.1825,161.69,161.68,0.04112455]
[1752321972794,9.5225,161.69,161.68,0.04112455]
[1752321973100,3.34,161.68,161.62,3.37]
[1752321973303,9.5248,161.63,161.62,3.37]
[1752321973600,3.34,161.65,161.62,3.37]
[1752321973800,3.34,161.64,161.62,3.37]
[1752321974100,2.3573685,161.68,161.62,3.37]
[1752321974299,3.34,161.65,161.62,3.37]
[1752321974500,6.1844,161.64,161.62,3.37]
[1752321974697,3.34,161.65,161.62,3.37]
[1752321974897,2.3573685,161.68,161.62,3.37]
[1752321975201,9.6548,161.63,161.62,3.37]
[1752321984306,3.47,161.63,161.62,3.37]
[1752321985812,6.1846,161.64,161.62,3.37]
[1752321986110,9.6546,161.64,161.62,3.37]
[1752321986408,9.6548,161.63,161.62,3.37]
[1752321990611,6.1845,161.64,161.62,3.37]
[1752321990813,5.82752703,161.65,161.63,3.59]
[1752321991012,2.35752703,161.65,161.63,3.59]
[1752321991210,8.54192703,161.65,161.63,3.59]
[1752321991414,3.47,161.64,161.63,3.59]
[1752321991813,9.6544,161.64,161.63,3.59]
[1752321999615,3.47,161.64,161.6,3.59]
[1752322000318,9.6555,161.62,161.6,3.59]
[1752322000720,9.6555,161.61,161.6,3.59]
[1752322001118,3.47,161.61,161.55,3.59]
[1752322001318,2.35752703,161.6,161.56,3.59]
[1752322001517,3.47,161.59,161.56,3.59]
[1752322002519,9.657,161.58,161.56,3.59]
[1752322003514,6.187,161.58,161.57,3.59]
[1752322003714,3.47,161.6,161.57,3.59]
[1752322003922,3.47,161.6,161.58,3.59]
[1752322004825,6.1863,161.59,161.58,3.59]
[1752322005121,6.1863,161.59,161.55,3.38]
[1752322005122,3.44,161.59,161.55,3.38]
[1752322005323,3.44,161.57,161.55,3.38]
[1752322005518,2.35752703,161.58,161.51,6.91319064]
[1752322005827,3.44,161.55,161.51,3.38]
[1752322006125,2.35752703,161.6,161.47,2.35752703]
[1752322006126,3.44,161.53,161.49,3.38]
[1752322006627,2.36095518,161.56,161.49,3.38]
[1752322006928,3.44,161.53,161.49,3.38]
[1752322007224,3.44,161.53,161.5,6.1895]
[1752322007421,3.44,161.55,161.51,3.38]
[1752322008427,3.44,161.55,161.53,3.38]
[1752322008428,3.44,161.54,161.53,3.38]
[1752322009725,3.44,161.55,161.48,2.36095518]
[1752322010026,3.44,161.55,161.51,3.38]
[1752322011323,3.44,161.54,161.52,3.38]
[1752322011530,3.44,161.55,161.49,3.38]
[1752322011733,3.44,161.53,161.52,3.38]
[1752322013030,3.44,161.53,161.5,3.38]
[1752322013529,6.189,161.52,161.5,3.38]
[1752322013726,3.44,161.51,161.5,3.38]
[1752322015522,3.44,161.52,161.51,3.38]
[1752322015725,3.44,161.53,161.51,3.38]
[1752322017330,9.6287,161.53,161.51,3.38]
[1752322017725,3.44,161.52,161.5,6.1896]
[1752322017931,3.44,161.51,161.45,3.38]
[1752322018231,3.44,161.51,161.46,3.38]
[1752322019034,6.1896,161.51,161.48,6.1905]
[1752322019237,3.44,161.5,161.49,3.38]
[1752322019536,9.6297,161.5,161.49,3.38]
[1752322020831,9.6302,161.49,161.46,3.38]
[1752322021037,3.44,161.48,161.46,3.38]
[1752322021335,6.1907,161.48,161.45,6.1914]
[1752322021540,3.44,161.47,161.41,3.38]
[1752322021732,3.44,161.47,161.45,3.4227843]
[1752322021932,3.44,161.47,161.46,3.38]
[1752322025541,3.48624448,161.48,161.46,9.5713]
[1752322025739,3.48624448,161.48,161.47,3.38]
[1752322026038,9.67684448,161.48,161.46,3.38]
[1752322026241,3.44,161.47,161.46,3.38]
[1752322026637,9.6309,161.47,161.46,3.38]
[1752322026942,3.44,161.46,161.45,0.0427843]
[1752322027248,3.44,161.45,161.42,3.38]
[1752322027741,6.1923,161.44,161.43,3.38]
[1752322027936,3.44,161.44,161.43,3.38]
[1752322028532,0.04511908,161.45,161.43,3.38]
[1752322028737,3.48511908,161.45,161.43,3.38]
[1752322028931,3.48511908,161.45,161.43,9.5722]
[1752322029133,3.48511908,161.45,161.44,3.38]
[1752322029955,0.04511908,161.45,161.44,9.572]
[1752322038359,534.78,161.52,161.49,3.52]
[1752322038559,3.35,161.53,161.49,3.52]
[1752322038961,6.1887,161.53,161.5,6.1895]
[1752322039158,3.35,161.52,161.51,3.52]
[1752322039964,9.539,161.52,161.51,3.52]
[1752322045265,9.539,161.52,161.49,6.1899]
[1752322045463,3.35,161.51,161.5,3.52]
[1752322045970,3.35,161.55,161.5,9.7097]
[1752322046158,9.5385,161.54,161.51,3.52]
[1752322046466,3.35,161.59,161.54,3.52]
[1752322046668,3.35,161.59,161.54,5.880333]
[1752322046972,3.35,161.59,161.56,2.360333]
[1752322047268,3.35,161.61,161.57,3.52]
[1752322047464,3.35,161.61,161.54,8.548433]
[1752322047767,6.187,161.58,161.55,3.52]
[1752322047967,9.537,161.58,161.55,6.1876]
[1752322048167,9.537,161.58,161.57,3.52]
[1752322050865,3.35,161.59,161.5,2.360333]
[1752322051065,179.26,161.62,161.5,2.360333]
[1752322051066,3.35,161.57,161.5,2.360333]
[1752322051267,3.35,161.57,161.51,3.52]
[1752322051764,6.1884,161.54,161.51,9.709]
[1752322051966,6.1884,161.54,161.52,3.52]
[1752322054676,9.5384,161.54,161.52,3.52]
[1752322055077,6.1886,161.53,161.52,3.52]
[1752322055370,3.35,161.53,161.5,3.52]
[1752322055571,3.35,161.53,161.48,3.52]
[1752322055769,2.360333,161.56,161.48,5.880333]
[1752322055975,3.35,161.55,161.49,3.52]
[1752322056972,9.5392,161.52,161.49,3.52]
[1752322057171,3.35,161.52,161.49,3.52]
[1752322057366,6.1894,161.51,161.49,3.52]
[1752322057572,9.5394,161.51,161.49,3.52]
[1752322058671,9.5394,161.51,161.5,3.52]
[1752322058869,3.35,161.51,161.49,3.52]
[1752322059371,6.1901,161.5,161.49,3.52]
[1752322059567,9.5401,161.5,161.49,3.52]
[1752322060273,3.35,161.5,161.46,3.52]
[1752322060675,6.1908,161.48,161.47,3.52]
[1752322061376,9.5408,161.48,161.47,3.52]
[1752322062574,3.35,161.49,161.45,3.52]
[1752322063081,9.541,161.47,161.46,3.52]
[1752322063576,6.1915,161.46,161.43,8.552633]
[1752322063774,3.35,161.49,161.43,3.52]
[1752322064168,6.1917,161.45,161.43,3.52]
[1752322064364,9.5417,161.45,161.43,3.52]
[1752322064681,3.35,161.44,161.43,3.52]
[1752322065175,3.35,161.44,161.43,9.7124]
[1752322065377,3.35,161.44,161.38,3.41]